fUST/lending_fUST_20250330
["ID","MTS","AMOUNT","RATE_DAILY","PERIOD"]
[356850180,1743332087394,-1806.43517262,0.00013699,2]
[356850181,1743332087417,-1806.43517262,0.00013699,2]
[356850182,1743332087440,-1806.43517262,0.00013699,2]
[356850183,1743332087463,-1806.43517262,0.00013699,2]
[356850184,1743332087483,-500.0,0.00013699,2]
[356850185,1743332087506,-1806.43517262,0.00013699,2]
[356850186,1743332087529,-1806.43517262,0.00013699,2]
[356850187,1743332087552,-1806.43517262,0.00013699,2]
[356850188,1743332087576,-1806.43517262,0.00013699,2]
[356850189,1743332087598,-1806.43517262,0.00013699,2]
[356850190,1743332087622,-1806.43517262,0.00013699,2]
[356850191,1743332087645,-1806.43517262,0.00013699,2]
[356850192,1743332087668,-1806.43517262,0.00013699,2]
[356850193,1743332087692,-1806.43517262,0.00013699,2]
[356850194,1743332087714,-1806.43517262,0.00013699,2]
[356850195,1743332087737,-1806.43517262,0.00013699,2]
[356850196,1743332087760,-1806.43517262,0.00013699,2]
[356850197,1743332087784,-815.62665952,0.00013699,2]
[356850198,1743332104137,151.0,0.00015,3]
[356850199,1743332110069,600.0,0.00015,3]
[356850200,1743332248871,500.0,0.0003,10]
[356850201,1743332250144,500.0,0.00028247,30]
[356850202,1743332250438,500.0,0.00026,30]
[356850203,1743332366778,452.080956,0.0003,10]
[356850204,1743332371029,452.080956,0.00029933,30]
[356850205,1743332371334,452.080956,0.00028247,30]
[356850206,1743332380595,343.06,0.00010959,2]
[356850213,1743332402633,-216.9001104,0.00012578,2]
[356850214,1743332402657,-35.87919029,0.00012999,2]
[356850215,1743332409335,-208.59593072,0.00012229,2]
[356850216,1743332438780,-220.60635781,0.00012229,2]
[356850217,1743332507803,-9570.79771147,0.00012229,2]
[356850218,1743332507829,-300.0,0.00012576,2]
[356850219,1743332507852,-500.0,0.00012577,2]
[356850220,1743332507878,-500.0,0.00012577,2]
[356850221,1743332507900,-500.0,0.00012577,2]
[356850222,1743332507923,-500.0,0.00012577,2]
[356850223,1743332507948,-500.0,0.00012577,2]
[356850224,1743332507971,-500.0,0.00012577,2]
[356850225,1743332507992,-332.31469702,0.00012577,2]
[356850226,1743332508016,-500.0,0.00012577,2]
[356850227,1743332508376,-500.0,0.00012577,2]
[356850228,1743332508421,-500.0,0.00012577,2]
[356850229,1743332508445,-500.0,0.00012577,2]
[356850230,1743332508468,-418.72816033,0.00012577,2]
[356850231,1743332508491,-500.0,0.00012577,2]
[356850232,1743332508515,-500.0,0.00012577,2]
[356850233,1743332508538,-232.46233118,0.00012577,2]
[356850234,1743332524741,287.45,0.00010959,2]
[356850235,1743332544274,232.0748,0.0003,14]
[356850236,1743332558255,-793.1929,0.00012451,2]
[356850237,1743332796552,460.4743374,0.00010563,2]
[356850238,1743332844126,-1526.59244564,0.00011409,2]
[356850239,1743332953114,-303.94910901,0.00011295,2]
[356850240,1743332953136,-300.0,0.00011523,2]
[356850241,1743332953159,-293.19429835,0.00011524,2]
[356850242,1743332953183,-500.0,0.00011524,2]
[356850243,1743332953205,-278.90944049,0.00011524,2]
[356850244,1743332953228,-500.0,0.00011524,2]
[356850245,1743332953251,-500.0,0.00011524,2]
[356850246,1743332953273,-500.0,0.00011524,2]
[356850247,1743332953296,-500.0,0.00011524,2]
[356850248,1743332953318,-500.0,0.00011524,2]
[356850249,1743332953340,-500.0,0.00011524,2]
[356850250,1743332953362,-500.0,0.00011524,2]
[356850251,1743332953383,-500.0,0.00011524,2]
[356850252,1743332953404,-500.0,0.00011524,2]
[356850253,1743332953654,-500.0,0.00011524,2]
[356850254,1743332953678,-500.0,0.00011524,2]
[356850255,1743332953700,-500.0,0.00011524,2]
[356850256,1743332953722,-570.57468438,0.00011524,2]
[356850257,1743332953743,-17364.11805073,0.00011524,2]
[356850258,1743332957978,26000.0,0.0003,10]
[356850259,1743332959108,-12233.1832,0.00011524,2]
[356850260,1743332965118,-20402.69874927,0.00011524,2]
[356850261,1743332965140,-11181.0150162,0.00011525,2]
[356850262,1743332965164,-528.28554023,0.00011576,2]
[356850263,1743332965188,-24900.0,0.00011577,2]
[356850264,1743332965211,-911.81124533,0.00012029,2]
[356850265,1743332965233,-169.74423895,0.00012129,2]
[356850266,1743332965254,-456.56829733,0.00012578,2]
[356850267,1743332965276,-420.0,0.00012655,2]
[356850268,1743332965297,-790.03682223,0.00013,2]
[356850269,1743332965318,-522.01457145,0.00013,2]
[356850270,1743332965340,-16267.0,0.00013,2]
[356850271,1743332965361,-500.0,0.00013175,2]
[356850272,1743332965386,-500.54168436,0.00013175,2]
[356850273,1743332965407,-502.6683568,0.00013175,2]
[356850274,1743332965429,-504.13799482,0.00013175,2]
[356850275,1743332965454,-269.56574684,0.0001318,2]
[356850276,1743332965475,-345.36266738,0.0001318,2]
[356850277,1743332965496,-500.0,0.0001318,2]
[356850278,1743332965517,-211.40455739,0.0001318,2]
[356850279,1743332965538,-163.77620249,0.0001318,2]
[356850280,1743332965558,-501.34821516,0.0001318,2]
[356850281,1743332965578,-156.17976718,0.0001318,2]
[356850282,1743332965599,-500.0,0.0001318,2]
[356850283,1743332965619,-500.0,0.0001318,2]
[356850284,1743332965639,-506.26439486,0.0001318,2]
[356850285,1743332965660,-293.14232603,0.0001318,2]
[356850286,1743332965681,-501.78322565,0.0001318,2]
[356850287,1743332965701,-504.50176867,0.0001318,2]
[356850288,1743332965721,-501.38151331,0.0001318,2]
[356850289,1743332965740,-154.52640514,0.0001318,2]
[356850290,1743332965762,-500.0,0.0001318,2]
[356850291,1743332965781,-500.0,0.0001318,2]
[356850292,1743332965801,-500.0,0.0001318,2]
[356850293,1743332965820,-502.88389539,0.0001318,2]
[356850294,1743332965841,-501.49431144,0.0001318,2]
[356850295,1743332965861,-500.0,0.0001318,2]
[356850296,1743332965881,-500.0,0.0001318,2]
[356850297,1743332965902,-501.05443195,0.0001318,2]
[356850298,1743332965923,-506.68139524,0.0001318,2]
[356850299,1743332965943,-500.0,0.0001318,2]
[356850300,1743332965965,-500.0,0.0001318,2]
[356850301,1743332965985,-246.48621604,0.0001318,2]
[356850302,1743332966006,-461.02487731,0.0001318,2]
[356850303,1743332966282,384.268812,0.0003,10]
[356850304,1743332970246,384.268812,0.00029933,30]
[356850305,1743332970590,384.268812,0.00028247,30]
[356850329,1743333032445,-38.97512269,0.0001318,2]
[356850330,1743333032454,-439.56118912,0.0001318,2]
[356850331,1743333032463,-506.12964066,0.0001318,2]
[356850332,1743333032476,-177.26579815,0.0001318,2]
[356850333,1743333032485,-500.0,0.0001318,2]
[356850334,1743333032495,-98.06824938,0.0001318,2]
[356850337,1743333032739,-182.61455779,0.0001318,2]
[356850338,1743333032748,-166.7616045,0.0001318,2]
[356850339,1743333032758,-500.0,0.0001318,2]
[356850340,1743333032767,-500.0,0.0001318,2]
[356850341,1743333032776,-160.81226179,0.0001318,2]
[356850342,1743333032785,-500.0,0.0001342,2]
[356850343,1743333032794,-589.81157592,0.00013497,2]
[356850344,1743333032805,-321.99966937,0.00013497,2]
[356850345,1743333032814,-300.0,0.00013697,2]
[356850346,1743333032823,-1000.0,0.00013698,2]
[356850347,1743333032832,-1000.0,0.00013698,2]
[356850348,1743333032841,-128.00033063,0.00013698,2]
[356850349,1743333032852,-871.99966937,0.00013698,2]
[356850350,1743333032862,-1000.0,0.00013698,2]
[356850351,1743333032871,-1000.0,0.00013698,2]
[356850352,1743333032880,-1000.0,0.00013698,2]
[356850353,1743333032889,-578.00033063,0.00013698,2]
[356850375,1743333038277,-369.79987816,0.00013698,2]
[356850376,1743333038286,-421.99966937,0.00013698,2]
[356850377,1743333038295,-1000.0,0.00013698,2]
[356850378,1743333038306,-2699.02066131,0.00013699,2]
[356850390,1743333043963,-949.10448218,0.00013699,2]
[356850403,1743333048470,157633.38542913,0.0003,10]
[356850404,1743333048751,976.65,0.00010959,2]
[356850405,1743333059260,813.88,0.00010959,2]
[356850406,1743333069892,678.23,0.00010959,2]
[356850407,1743333080649,565.19,0.00010959,2]
[356850408,1743333091380,470.99,0.00010959,2]
[356850409,1743333101898,392.5,0.00010959,2]
[356850410,1743333112433,327.08,0.00010959,2]
[356850411,1743333122992,272.57,0.00010959,2]
[356850412,1743333133493,227.14,0.00010959,2]
[356850413,1743333145344,189.28,0.00010959,2]
[356850414,1743333156049,157.73,0.00010959,2]
[356850415,1743333166566,788.7,0.00010959,2]
[356850416,1743333380192,-151.0,0.00012333,2]
[356850417,1743333389010,-151.0,0.0001221,2]
[356850418,1743333394008,-185.2023666,0.00012333,2]
[356850419,1743333394031,-64.7976334,0.00012539,2]
[356850420,1743333394596,-250.0,0.00012539,2]
[356850421,1743333423022,-151.0,0.0001221,2]
[356850422,1743333423048,-28.73972597,0.00012539,2]
[356850423,1743333426282,-204.1785857,0.00012413,2]
[356850424,1743333478429,-45.8214143,0.00012413,2]
[356850425,1743333478451,-122.37638308,0.00012539,2]
[356850426,1743333482048,-278.25369454,0.00012539,2]
[356850427,1743333495597,-152.93349173,0.00012261,2]
[356850428,1743333503811,-209.54504533,0.00012261,2]
[356850429,1743333513903,-150.39660977,0.00012261,2]
[356850430,1743333514508,-150.39660977,0.00012261,2]
[356850431,1743333525854,-245.53100959,0.00012261,2]
[356850432,1743333602119,-320.0274201,0.00012261,2]
[356850433,1743333632459,-157.40138,0.00012261,2]
[356850434,1743333634991,-175.159423,0.00012261,2]
[356850435,1743333651706,-167.60647244,0.00012045,2]
[356850436,1743333663946,-82.39352756,0.00012045,2]
[356850437,1743333663970,-71.79685634,0.00012261,2]
[356850438,1743333697316,-179.73972597,0.00011924,2]
[356850439,1743333697340,-110.7152287,0.00012261,2]
[356850440,1743333713556,-383.91831167,0.00012045,2]
[356850441,1743333723833,-403.05806169,0.00012045,2]
[356850442,1743333752871,-300.0,0.00012044,2]
[356850443,1743333753774,-300.0,0.00012044,2]
[356850444,1743333761237,-26.08827743,0.00012044,2]
[356850445,1743333761258,-124.91172257,0.00012044,2]
[356850446,1743333810597,-151.18618189,0.00011512,2]
[356850447,1743333845603,-52.99240381,0.00011512,2]
[356850448,1743333845624,-99.23010188,0.00012043,2]
[356850449,1743333873232,-152.22250569,0.00011923,2]
[356850450,1743333873255,-57.56917174,0.00012043,2]
[356850451,1743333873896,-143.20072638,0.00012043,2]
[356850452,1743333873920,-66.59095105,0.00012043,2]
[356850453,1743333879297,-150.4996,0.00011923,2]
[356850454,1743333893748,-59.29207743,0.00011923,2]
[356850455,1743333893771,-157.0197618,0.00012043,2]
[356850456,1743333901813,-220.918539,0.00011923,2]
[356850462,1743333962159,-145.89290023,0.00011923,2]
[356850463,1743333962182,-40.16343636,0.00012043,2]
[356850464,1743333965966,-300.0,0.00011804,2]
[356850467,1743333985184,-158.50546973,0.00011127,2]
[356850469,1743333992109,-196.34176115,0.00011127,2]
[356850470,1743333992779,-152.93349173,0.00011127,2]
[356850471,1743333995201,-161.9425379,0.00011127,2]
[356850472,1743333997669,-236.54546885,0.00011127,2]
[356850473,1743334022788,-244.87850032,0.00011127,2]
[356850475,1743334044088,-298.91433972,0.00011127,2]
[356850476,1743334044110,-677.14370329,0.00011523,2]
[356850477,1743334044130,-106.97487559,0.00011804,2]
[356850478,1743334044150,-197.1730703,0.00011945,2]
[356850479,1743334044170,-258.85991471,0.00012042,2]
[356850480,1743334044191,-273.73305506,0.00012042,2]
[356850481,1743334044907,-195.99239,0.00012042,2]
[356850483,1743334053710,-198.26694453,0.00011922,2]
[356850484,1743334071976,-210.86485263,0.00011922,2]
[356850490,1743334146135,-202.3071643,0.00011922,2]
[356850491,1743334146156,-300.0,0.0001204,2]
[356850492,1743334146176,-181.2019403,0.00012041,2]
[356850493,1743334146198,-500.0,0.00012041,2]
[356850494,1743334146220,-500.0,0.00012041,2]
[356850495,1743334146240,-51.1259794,0.00012041,2]
[356850496,1743334158144,-210.86485263,0.00011921,2]
[356850497,1743334158167,-202.21264409,0.00012041,2]
[356850498,1743334158189,-160.72922472,0.00012041,2]
[356850499,1743334158212,-500.0,0.00012041,2]
[356850500,1743334158235,-500.0,0.00012041,2]
[356850501,1743334158257,-500.0,0.00012041,2]
[356850502,1743334158279,-500.0,0.00012041,2]
[356850503,1743334158302,-500.0,0.00012041,2]
[356850504,1743334158326,-500.0,0.00012041,2]
[356850505,1743334158349,-500.0,0.00012041,2]
[356850506,1743334158372,-500.0,0.00012041,2]
[356850507,1743334158394,-500.0,0.00012041,2]
[356850508,1743334158416,-500.0,0.00012041,2]
[356850509,1743334158438,-500.0,0.00012041,2]
[356850510,1743334158460,-500.0,0.00012041,2]
[356850511,1743334158483,-500.0,0.00012041,2]
[356850512,1743334158504,-500.0,0.00012041,2]
[356850513,1743334158529,-500.0,0.00012041,2]
[356850514,1743334158770,-500.0,0.00012041,2]
[356850515,1743334158795,-218.09032319,0.00012041,2]
[356850516,1743334158818,-500.0,0.00012041,2]
[356850517,1743334158840,-50000.0,0.00012042,2]
[356850518,1743334158861,-24113.02362664,0.00012045,2]
[356850519,1743334158881,-577.32398356,0.0001216,2]
[356850520,1743334158903,-2651.19684741,0.00012261,2]
[356850547,1743334232697,-190.76102941,0.00011945,2]
[356850548,1743334232707,-5604.90007826,0.00012261,2]
[356850549,1743334232716,-497.63819961,0.00012539,2]
[356850550,1743334232726,-488.70334171,0.00012599,2]
[356850551,1743334232735,-481.7204522,0.00012698,2]
[356850552,1743334232745,-188.107217,0.00012699,2]
[356850553,1743334232755,-312.5754595,0.00012739,2]
[356850554,1743334232764,-190.76102941,0.00012772,2]
[356850555,1743334232774,-300.0,0.00012899,2]
[356850556,1743334232783,-2609.87772897,0.000129,2]
[356850557,1743334232792,-1024.3793721,0.00013178,2]
[356850558,1743334232801,-188.107217,0.00013207,2]
[356850559,1743334232810,-5000.0,0.00013216,2]
[356850560,1743334232819,-500.0,0.000133,2]
[356850561,1743334232829,-503.74038843,0.0001338,2]
[356850562,1743334232838,-500.0,0.0001338,2]
[356850563,1743334232848,-500.0,0.0001338,2]
[356850564,1743334232857,-500.0,0.0001338,2]
[356850565,1743334232867,-354.75576822,0.0001338,2]
[356850566,1743334232876,-500.0,0.0001338,2]
[356850567,1743334232885,-500.0,0.0001338,2]
[356850568,1743334232894,-500.0,0.0001338,2]
[356850569,1743334232903,-500.0,0.0001338,2]
[356850570,1743334232912,-500.0,0.0001338,2]
[356850571,1743334232921,-500.0,0.0001338,2]
[356850572,1743334232930,-577.32398355,0.00013595,2]
[356850573,1743334232939,-190.76102941,0.00013599,2]
[356850574,1743334232949,-13932.84126549,0.00013699,2]
[356850575,1743334232974,-886.74960464,0.00013699,2]
[356850576,1743334233736,-300.0,0.00012899,2]
[356850583,1743334238670,-279.78781369,0.00012899,2]
[356850584,1743334238680,-500.0,0.00012899,2]
[356850585,1743334238690,-2025.84941583,0.00013699,2]
[356850586,1743334238710,-1091.16643177,0.00013699,2]
[356850604,1743334240606,-3187.17052709,0.00013699,2]
[356850631,1743334243506,-21.81575124,0.00013699,2]
[356850654,1743334277163,370.98,0.00010959,2]
[356850655,1743334287693,309.15,0.00010959,2]
[356850656,1743334298212,257.62,0.00010959,2]
[356850657,1743334308806,214.69,0.00010959,2]
[356850658,1743334319324,178.91,0.00010959,2]
[356850660,1743334330099,894.55,0.00010959,2]
[356850661,1743334331820,-346.39439013,0.00013599,2]
[356850662,1743334331850,-300.0,0.00013698,2]
[356850663,1743334331879,-6760.60560987,0.00013699,2]
[356850664,1743334358890,-211.24657045,0.0001277,2]
[356850665,1743334384408,-197.77749431,0.0001277,2]
[356850666,1743334447156,-218.49776043,0.0001277,2]
[356850667,1743334447744,-218.49776043,0.0001277,2]
[356850668,1743334472453,-172.87853869,0.0001277,2]
[356850669,1743334475527,-176.92108597,0.0001277,2]
[356850673,1743334911526,580.29943413,0.00011,2]
[356850674,1743335232271,452.9334917,0.00010855,2]
[356850675,1743335247093,-972.3708098,0.00011055,2]
[356850676,1743335247348,-300.0,0.00011472,2]
[356850677,1743335247371,-447.84528131,0.00011473,2]
[356850678,1743335335638,235.147614,0.00010855,2]
[356850679,1743335360118,-235.147614,0.0001129,2]
[356850680,1743335360141,-500.0,0.00011472,2]
[356850681,1743335360162,-500.0,0.00011472,2]
[356850682,1743335360183,-500.0,0.00011472,2]
[356850683,1743335360205,-500.0,0.00011472,2]
[356850684,1743335360228,-500.0,0.00011472,2]
[356850685,1743335360249,-500.0,0.00011472,2]
[356850686,1743335360270,-500.0,0.00011472,2]
[356850687,1743335360291,-500.0,0.00011472,2]
[356850688,1743335360313,-538.01851225,0.00011472,2]
[356850689,1743335360337,-500.0,0.00011472,2]
[356850690,1743335360361,-500.0,0.00011472,2]
[356850691,1743335360383,-473.2466775,0.00011472,2]
[356850692,1743335360405,-500.0,0.00011472,2]
[356850693,1743335360429,-500.0,0.00011472,2]
[356850694,1743335360450,-500.0,0.00011472,2]
[356850695,1743335360471,-500.0,0.00011472,2]
[356850696,1743335360712,-500.0,0.00011472,2]
[356850697,1743335360735,-500.0,0.00011472,2]
[356850698,1743335360757,-500.0,0.00011472,2]
[356850699,1743335360778,-500.0,0.00011472,2]
[356850700,1743335360801,-500.0,0.00011472,2]
[356850701,1743335360823,-500.0,0.00011472,2]
[356850702,1743335360845,-500.0,0.00011472,2]
[356850703,1743335360867,-500.0,0.00011472,2]
[356850704,1743335360889,-500.0,0.00011472,2]
[356850705,1743335360910,-500.0,0.00011472,2]
[356850706,1743335360931,-500.0,0.00011472,2]
[356850707,1743335360953,-500.0,0.00011472,2]
[356850708,1743335360975,-500.0,0.00011472,2]
[356850709,1743335360996,-464.73183066,0.00011472,2]
[356850710,1743335361019,-500.0,0.00011472,2]
[356850711,1743335361040,-300.0,0.00011472,2]
[356850712,1743335361062,-11657.69965216,0.00011473,2]
[356850713,1743335361083,-356.69390448,0.00011476,2]
[356850714,1743335361104,-24900.0,0.00011477,2]
[356850715,1743335361125,-250.0,0.00011557,2]
[356850716,1743335361145,-157.59426,0.0001229,2]
[356850717,1743335361166,-10000.0,0.00012478,2]
[356850718,1743335361186,-420.0,0.000126,2]
[356850719,1743335361206,-5000.0,0.00012798,2]
[356850720,1743335361226,-1550.46674248,0.00013273,2]
[356850721,1743335361246,-160.0,0.00013359,2]
[356850722,1743335361267,-13002.99486625,0.0001336,2]
[356850725,1743335414410,382.58395537,0.00012517,2]
[356850726,1743335414433,493.09934833,0.00012517,2]
[356850745,1743335432795,-2411.71075117,0.00013273,2]
[356850746,1743335432804,-151.0,0.00013352,2]
[356850747,1743335432814,-300.0,0.00013359,2]
[356850748,1743335432823,-80963.83190872,0.0001336,2]
[356850749,1743335432857,-441.115,0.0001336,2]
[356850803,1743335438461,-219.24963083,0.00013359,2]
[356850805,1743335438470,-627.75377826,0.0001336,2]
[356850833,1743335438905,-8747.25226944,0.0001336,2]
[356850834,1743335438916,-5272.4776449,0.0001336,2]
[356850904,1743335443736,-253.52116008,0.0001336,2]
[356850989,1743335446560,-848.7,0.0001336,2]
[356851001,1743335446667,-15316.47998149,0.0001336,2]
[356851010,1743335461149,287.26,0.00010959,2]
[356851012,1743335471650,239.39,0.00010959,2]
[356851015,1743335482239,199.49,0.00010959,2]
[356851016,1743335493041,166.24,0.00010959,2]
[356851017,1743335503520,831.22,0.00010959,2]
[356851051,1743336201322,157.399858,0.00015,3]
[356851054,1743336409614,667.17,0.00010959,2]
[356851055,1743336415896,4753.99083157,0.00013,3]
[356851057,1743336447137,-193.3904217,0.00011125,2]
[356851058,1743336447159,-701.37995722,0.00011715,2]
[356851059,1743336447180,-300.0,0.0001195,2]
[356851060,1743336447201,-273.41058747,0.00011951,2]
[356851061,1743336447220,-498.12257015,0.00011951,2]
[356851062,1743336447241,-500.0,0.00011951,2]
[356851063,1743336447263,-500.0,0.00011951,2]
[356851064,1743336447284,-500.0,0.00011951,2]
[356851065,1743336447304,-500.0,0.00011951,2]
[356851066,1743336447324,-500.0,0.00011951,2]
[356851067,1743336447345,-500.0,0.00011951,2]
[356851068,1743336447369,-389.3915802,0.00011951,2]
[356851069,1743336448089,-110.6084198,0.00011951,2]
[356851070,1743336448113,-500.0,0.00011951,2]
[356851071,1743336448135,-500.0,0.00011951,2]
[356851072,1743336448156,-500.0,0.00011951,2]
[356851073,1743336448178,-500.0,0.00011951,2]
[356851074,1743336448199,-60.59902702,0.00011951,2]
[356851078,1743336546074,-151.45123136,0.00011615,2]
[356851079,1743336546096,-300.0,0.00011949,2]
[356851080,1743336546116,-191.23204081,0.0001195,2]
[356851081,1743336546137,-497.96188311,0.0001195,2]
[356851082,1743336546157,-500.0,0.0001195,2]
[356851083,1743336546178,-526.23205279,0.0001195,2]
[356851084,1743336546200,-500.0,0.0001195,2]
[356851085,1743336546220,-500.0,0.0001195,2]
[356851086,1743336546241,-500.0,0.0001195,2]
[356851087,1743336546262,-500.0,0.0001195,2]
[356851088,1743336546284,-500.0,0.0001195,2]
[356851089,1743336546305,-500.0,0.0001195,2]
[356851090,1743336546327,-500.0,0.0001195,2]
[356851091,1743336546348,-500.0,0.0001195,2]
[356851092,1743336546370,-500.0,0.0001195,2]
[356851093,1743336546392,-500.0,0.0001195,2]
[356851094,1743336546414,-500.0,0.0001195,2]
[356851095,1743336546436,-500.0,0.0001195,2]
[356851096,1743336546457,-500.0,0.0001195,2]
[356851097,1743336546480,-500.0,0.0001195,2]
[356851098,1743336546501,-500.0,0.0001195,2]
[356851099,1743336546524,-500.0,0.0001195,2]
[356851100,1743336546546,-407.70067899,0.0001195,2]
[356851101,1743336546572,-500.0,0.0001195,2]
[356851102,1743336546593,-500.0,0.0001195,2]
[356851103,1743336546614,-500.0,0.0001195,2]
[356851104,1743336546636,-500.0,0.0001195,2]
[356851105,1743336546657,-500.0,0.0001195,2]
[356851106,1743336546679,-500.0,0.0001195,2]
[356851107,1743336546703,-500.0,0.0001195,2]
[356851108,1743336546724,-6913.45636598,0.00011951,2]
[356851109,1743336559101,-1178.13848389,0.00011951,2]
[356851110,1743336572126,-41908.40515013,0.00011951,2]
[356851111,1743336572147,-24900.0,0.00011955,2]
[356851112,1743336572168,-10000.0,0.00012295,2]
[356851113,1743336572188,-1202.59237393,0.00012311,2]
[356851157,1743336631862,-20568.3205801,0.00012301,2]
[356851159,1743336631873,-943.94108377,0.00012311,2]
[356851161,1743336631882,-250.0,0.00012329,2]
[356851163,1743336631892,-324.67681361,0.00013158,2]
[356851165,1743336631901,-399.74122178,0.0001316,2]
[356851167,1743336631910,-324.67681357,0.00013162,2]
[356851169,1743336631919,-324.67681357,0.00013166,2]
[356851171,1743336631928,-324.67681357,0.00013169,2]
[356851173,1743336631938,-324.67681357,0.00013173,2]
[356851175,1743336631947,-500.0,0.000132,2]
[356851177,1743336631957,-154.33471872,0.0001324,2]
[356851179,1743336631966,-160.0,0.00013254,2]
[356851181,1743336631975,-160.0,0.00013254,2]
[356851183,1743336631984,-300.0,0.00013254,2]
[356851185,1743336631993,-370000.0,0.00013255,2]
[356851187,1743336632002,-236.7374889,0.00013258,2]
[356851189,1743336632011,-153.28338079,0.00013259,2]
[356851191,1743336632020,-5000.0,0.0001326,2]
[356851193,1743336632029,-504.11136017,0.00013273,2]
[356851195,1743336632039,-500.0,0.00013273,2]
[356851197,1743336632048,-500.0,0.00013273,2]
[356851199,1743336632057,-500.0,0.00013273,2]
[356851201,1743336632066,-500.0,0.00013273,2]
[356851203,1743336632075,-500.0,0.00013273,2]
[356851205,1743336632085,-500.0,0.00013273,2]
[356851207,1743336632094,-502.02701744,0.00013273,2]
[356851209,1743336632103,-192.77989032,0.00013273,2]
[356851211,1743336632112,-500.0,0.00013273,2]
[356851213,1743336632124,-500.0,0.00013273,2]
[356851215,1743336632144,-500.0,0.00013273,2]
[356851217,1743336632158,-500.0,0.00013273,2]
[356851219,1743336632168,-500.0,0.00013273,2]
[356851221,1743336632177,-500.0,0.00013273,2]
[356851223,1743336632186,-269.56574684,0.00013273,2]
[356851225,1743336632196,-500.0,0.00013273,2]
[356851227,1743336632205,-500.0,0.00013273,2]
[356851229,1743336632214,-500.0,0.00013273,2]
[356851231,1743336632223,-206.67974558,0.00013273,2]
[356851233,1743336632232,-163.77620249,0.00013273,2]
[356851235,1743336632241,-500.0,0.00013273,2]
[356851237,1743336632250,-406.01864114,0.00013273,2]
[356851239,1743336632259,-500.0,0.00013273,2]
[356851241,1743336632268,-500.0,0.00013273,2]
[356851243,1743336632278,-500.0,0.00013273,2]
[356851245,1743336632287,-500.0,0.00013273,2]
[356851247,1743336632296,-246.48621604,0.00013273,2]
[356851249,1743336632304,-345.36266738,0.00013273,2]
[356851251,1743336632313,-406.08371842,0.00013273,2]
[356851253,1743336632322,-500.0,0.00013273,2]
[356851255,1743336632331,-500.0,0.00013273,2]
[356851257,1743336632340,-405.27113614,0.00013273,2]
[356851259,1743336632350,-500.0,0.00013273,2]
[356851261,1743336632359,-500.0,0.00013273,2]
[356851263,1743336632368,-420.3937859,0.00013273,2]
[356851265,1743336632378,-500.0,0.00013273,2]
[356851267,1743336632388,-500.0,0.00013273,2]
[356851269,1743336632397,-500.0,0.00013273,2]
[356851271,1743336632406,-420.62801521,0.00013273,2]
[356851273,1743336632416,-500.96319769,0.00013273,2]
[356851275,1743336632425,-500.0,0.00013273,2]
[356851277,1743336632434,-500.0,0.00013273,2]
[356851279,1743336632443,-500.0,0.00013273,2]
[356851280,1743336632451,-152.5470423,0.00013273,2]
[356851282,1743336632460,-268.43999011,0.00013273,2]
[356851284,1743336632469,-154.52640514,0.00013273,2]
[356851286,1743336632478,-502.8339842,0.00013273,2]
[356851288,1743336632487,-395.1951317,0.00013273,2]
[356851290,1743336632496,-500.33176759,0.00013273,2]
[356851292,1743336632506,-500.0,0.00013273,2]
[356851294,1743336632516,-500.0,0.00013273,2]
[356851296,1743336632526,-500.87642717,0.00013273,2]
[356851298,1743336632535,-267.75511879,0.00013273,2]